bitfinex-derivatives/quotes_BTCF0:USTF0_20250709
["timestamp","ask_amount","ask_price","bid_price","bid_amount"]
[1752075533295,0.1836295,108900.0,108890.0,0.0304]
[1752075533491,0.81987146,108900.0,108890.0,0.0468]
[1752075533692,0.18461987,108900.0,108890.0,0.0468]
[1752075533999,0.82086183,108900.0,108890.0,0.0304]
[1752075534290,0.84374183,108900.0,108890.0,0.0468]
[1752075534693,0.84374183,108900.0,108890.0,0.06084702]
[1752075534993,0.85238081,108900.0,108890.0,0.06084702]
[1752075535294,0.87149081,108900.0,108890.0,0.06084702]
[1752075535497,0.85538081,108900.0,108890.0,0.06084702]
[1752075535690,0.87149081,108900.0,108890.0,0.06084702]
[1752075536393,0.90309081,108900.0,108890.0,0.04444702]
[1752075536591,1.29459081,108900.0,108890.0,0.01404702]
[1752075537385,1.91008081,108900.0,108890.0,0.01404702]
[1752075537591,1.91008081,108900.0,108890.0,0.06244702]
[1752075537891,1.91008081,108900.0,108890.0,0.0484]
[1752075538394,1.91008081,108900.0,108890.0,0.032]
[1752075539291,0.1836463,108890.0,108880.0,0.3626368]
[1752075539489,0.54216138,108890.0,108880.0,0.42537259]
[1752075539793,0.53638175,108890.0,108880.0,0.45777259]
[1752075539990,0.53638175,108890.0,108880.0,0.64143569]
[1752075540292,0.85026077,108890.0,108880.0,0.66567569]
[1752075540494,1.16838175,108890.0,108880.0,0.66567569]
[1752075540893,1.17238175,108890.0,108880.0,0.66667569]
[1752075541784,0.20615077,108890.0,108880.0,0.8363199]
[1752075541988,0.20615077,108890.0,108880.0,1.41847886]
[1752075542208,0.02250447,108890.0,108880.0,1.41847886]
[1752075542388,0.9076951,108900.0,108890.0,0.1836463]
[1752075542695,0.18377308,108900.0,108890.0,0.95034526]
[1752075542902,0.81601308,108900.0,108890.0,1.38400926]
[1752075543096,0.81609308,108900.0,108890.0,1.06588828]
[1752075544202,0.18477308,108900.0,108890.0,1.06788828]
[1752075544902,0.18477308,108900.0,108890.0,1.38600926]
[1752075545600,0.18477308,108900.0,108890.0,1.10108828]
[1752075546299,0.18477308,108900.0,108890.0,0.85108828]
[1752075546700,1.13509406,108900.0,108890.0,0.66742428]
[1752075546893,1.15120406,108900.0,108890.0,0.66742428]
[1752075547096,0.51900406,108900.0,108890.0,0.66742428]
[1752075547394,1.15100406,108900.0,108890.0,0.66742428]
[1752075547600,1.15100406,108900.0,108890.0,0.66749529]
[1752075551107,1.15100406,108900.0,108890.0,0.66756454]
[1752075551404,1.15100406,108900.0,108890.0,0.48391824]
[1752075552290,1.15175175,108900.0,108890.0,0.48391824]
[1752075552495,1.1520025,108900.0,108890.0,0.66756454]
[1752075552696,1.1520025,108900.0,108890.0,0.45967824]
[1752075552901,1.1768625,108900.0,108890.0,0.45967824]
[1752075553401,1.2087625,108900.0,108890.0,0.45967824]
[1752075554297,0.89064152,108900.0,108890.0,0.64332454]
[1752075554499,1.1358925,108900.0,108890.0,0.66736454]
[1752075554700,0.18577152,108900.0,108890.0,0.66736454]
[1752075554895,0.00213602,108900.0,108890.0,1.16914952]
[1752075555103,0.81720542,108900.0,108890.0,1.16914952]
[1752075556104,0.81720542,108900.0,108890.0,0.85102854]
[1752075556699,1.1353264,108900.0,108890.0,0.85102854]
[1752075557100,1.1710053,108900.0,108890.0,0.85102854]
[1752075557809,1.48912628,108900.0,108890.0,0.66736454]
[1752075558112,1.1958653,108900.0,108890.0,0.64264454]
[1752075558299,1.57728628,108900.0,108890.0,0.42589824]
[1752075558505,1.57728628,108900.0,108890.0,0.39269824]
[1752075558901,1.54160738,108900.0,108890.0,0.39269824]
[1752075559108,1.57729949,108900.0,108890.0,0.39269824]
[1752075559712,1.57729949,108900.0,108890.0,0.57634454]
[1752075560402,1.25917851,108900.0,108890.0,0.57634454]
[1752075560603,1.57729949,108900.0,108890.0,0.56062454]
[1752075560804,1.33979819,108900.0,108890.0,0.57634454]
[1752075561501,1.33979819,108900.0,108890.0,0.56062454]
[1752075561706,1.33979819,108900.0,108890.0,0.57634454]
[1752075562105,1.33979819,108900.0,108890.0,0.56062454]
[1752075562306,0.94105753,108900.0,108890.0,0.56062454]
[1752075562511,1.35602819,108900.0,108890.0,0.57634454]
[1752075563209,0.91619753,108900.0,108890.0,0.56062454]
[1752075563409,1.35602819,108900.0,108890.0,0.56062454]
[1752075563913,1.35602819,108900.0,108890.0,0.57634454]
[1752075564215,1.35442009,108900.0,108890.0,0.56062454]
[1752075564417,1.35442009,108900.0,108890.0,0.37697824]
[1752075564720,1.35442009,108900.0,108890.0,0.39269824]
[1752075564910,1.35442009,108900.0,108890.0,0.57634454]
[1752075565708,1.35442009,108900.0,108890.0,0.39269824]
[1752075565909,1.35442009,108900.0,108890.0,0.57634454]
[1752075568918,1.31872798,108900.0,108890.0,0.57634454]
[1752075569305,1.35446271,108900.0,108890.0,0.57634454]
[1752075570816,1.35447327,108900.0,108890.0,0.57634454]
[1752075571318,1.35447327,108900.0,108890.0,0.57636825]
[1752075575110,1.35447327,108900.0,108890.0,0.37700195]
[1752075575719,1.33824327,108900.0,108890.0,0.37700195]
[1752075576420,1.33824327,108900.0,108890.0,0.56064825]
[1752075576615,0.70680327,108900.0,108890.0,0.57636825]
[1752075576815,1.35375327,108900.0,108890.0,0.57636825]
[1752075577121,1.35375327,108900.0,108890.0,0.57638049]
[1752075577122,1.31800798,108900.0,108890.0,0.57638049]
[1752075577815,1.35396842,108900.0,108890.0,0.57638049]
[1752075579117,0.72324842,108900.0,108890.0,0.57638049]
[1752075579315,1.31800798,108900.0,108890.0,0.57638049]
[1752075579727,1.29990798,108900.0,108890.0,0.57670049]
[1752075580110,1.29990798,108900.0,108890.0,0.56066049]
[1752075580320,1.29990798,108900.0,108890.0,0.57670049]
[1752075580522,1.29990798,108900.0,108890.0,0.56066049]
[1752075581221,1.29990798,108900.0,108890.0,0.57670049]
[1752075582924,1.5391424,108900.0,108890.0,0.39305419]
[1752075583622,1.5391424,108900.0,108890.0,0.57670049]
[1752075583824,1.5391424,108900.0,108890.0,0.39305419]
[1752075584421,1.5391424,108900.0,108890.0,0.57670049]
[1752075585718,1.5391424,108900.0,108890.0,0.39305419]
[1752075585919,1.5391424,108900.0,108890.0,0.57670049]
[1752075586820,1.5391424,108900.0,108890.0,0.68634573]
[1752075588722,0.9084224,108900.0,108890.0,0.68634573]
[1752075589028,1.21255486,108900.0,108890.0,0.70908573]
[1752075589222,1.21255486,108900.0,108890.0,0.77438573]
[1752075589621,1.14925486,108900.0,108890.0,0.77438573]
[1752075590025,0.51869486,108900.0,108890.0,0.77438573]
[1752075590331,0.83042732,108900.0,108890.0,0.77438573]
[1752075590715,0.96578546,108900.0,108890.0,0.77438573]
[1752075590920,1.13386486,108900.0,108890.0,0.78308433]
[1752075592027,0.81487732,108900.0,108890.0,0.78308433]
[1752075593028,0.63124792,108900.0,108890.0,0.78308433]
[1752075593230,0.63120792,108900.0,108890.0,1.10207187]
[1752075594131,0.63120792,108900.0,108890.0,0.78308433]
[1752075594431,0.63120792,108900.0,108890.0,1.10207187]
[1752075595532,0.00052792,108900.0,108890.0,1.28573587]
[1752075595925,0.38191,108920.0,108910.0,0.1836125]
[1752075596125,0.38191,108920.0,108910.0,0.95820669]
[1752075596126,1.28632754,108920.0,108910.0,0.95820669]
[1752075596322,1.28632754,108920.0,108910.0,1.02380669]
[1752075597033,1.28932754,108920.0,108910.0,1.13482645]
[1752075597431,0.65884754,108920.0,108910.0,1.13482645]
[1752075597630,1.28936754,108920.0,108910.0,1.13482645]
[1752075597832,1.28936754,108920.0,108910.0,1.13582645]
[1752075598031,1.29336754,108920.0,108910.0,1.13582645]
[1752075598227,1.32506754,108920.0,108910.0,1.13582645]
[1752075598529,1.32506754,108920.0,108910.0,1.11308645]
[1752075598731,1.35706754,108920.0,108910.0,1.11308645]
[1752075599232,0.72654754,108920.0,108910.0,1.11308645]
[1752075599529,1.37989754,108920.0,108910.0,1.11308645]
[1752075599724,0.74953754,108920.0,108910.0,1.11308645]
[1752075599926,1.37977754,108920.0,108910.0,1.11308645]
[1752075600333,1.37977754,108920.0,108910.0,1.11321663]
[1752075600527,1.35678754,108920.0,108910.0,1.11321663]
[1752075600722,1.24718544,108920.0,108910.0,1.13595663]
[1752075601031,0.57104414,108920.0,108910.0,1.02593687]
[1752075601227,1.20120414,108920.0,108910.0,1.02593687]
[1752075601436,1.20124414,108920.0,108910.0,1.02593687]
[1752075601727,0.52514334,108920.0,108910.0,1.02593687]
[1752075601926,0.007,108920.0,108910.0,1.45494417]
[1752075603636,0.007,108920.0,108910.0,1.45485161]
[1752075604136,0.50958324,108920.0,108910.0,1.13586407]
[1752075604430,0.54812324,108920.0,108910.0,0.84787157]
[1752075604632,0.60892324,108920.0,108910.0,0.12627157]
[1752075604825,0.60892324,108920.0,108910.0,0.48707157]
[1752075606029,0.60892324,108920.0,108910.0,0.37705181]
[1752075606538,0.60892324,108920.0,108910.0,0.56066441]
[1752075607242,0.60892324,108920.0,108910.0,0.57142964]
[1752075608239,0.60892324,108920.0,108910.0,0.58737504]
[1752075608436,0.60892324,108920.0,108910.0,0.58705504]
[1752075608635,0.60892324,108920.0,108910.0,0.57133504]
[1752075609941,0.60892324,108920.0,108910.0,0.58705504]
[1752075610136,0.60892324,108920.0,108910.0,0.57133504]
[1752075611242,0.2899357,108920.0,108910.0,0.58705504]
[1752075611444,0.61090324,108920.0,108910.0,0.58705504]
[1752075613236,0.61090324,108920.0,108910.0,0.40344244]
[1752075614937,0.61090324,108920.0,108910.0,0.38772244]
[1752075617943,0.61090324,108920.0,108910.0,0.57133504]
[1752075618145,0.61090324,108920.0,108910.0,0.58705504]
[1752075618346,0.61090324,108920.0,108910.0,0.38772244]
[1752075618745,0.61090324,108920.0,108910.0,0.40344244]
[1752075618943,0.61090324,108920.0,108910.0,0.38772244]
[1752075619343,0.61090324,108920.0,108910.0,0.40344244]
[1752075619543,0.61090324,108920.0,108910.0,0.58705504]
[1752075619746,0.61090324,108920.0,108910.0,0.40344244]
[1752075620043,0.61090324,108920.0,108910.0,0.38928523]
[1752075620243,0.61090324,108920.0,108910.0,0.40349092]
[1752075620448,0.61090324,108920.0,108910.0,0.58710352]
[1752075620950,0.61090324,108920.0,108910.0,0.40352374]
[1752075621150,0.61090324,108920.0,108910.0,0.58713634]
[1752075621447,0.2919157,108920.0,108910.0,0.58713634]
[1752075621653,0.61090324,108920.0,108910.0,0.58713634]
[1752075621850,0.2070957,108920.0,108910.0,0.58713634]
[1752075622060,1.15628324,108920.0,108910.0,0.65153634]
[1752075622351,1.17587687,108920.0,108910.0,0.65153634]
[1752075622555,1.20687687,108920.0,108910.0,0.65153634]
[1752075622853,1.20687687,108920.0,108910.0,0.63581634]
[1752075623152,1.20687687,108920.0,108910.0,0.67427618]
[1752075623951,1.17587687,108920.0,108910.0,0.67427618]
[1752075624152,1.13978324,108920.0,108910.0,0.67427618]
[1752075625451,1.16978324,108920.0,108910.0,0.67427618]
[1752075626054,1.13978324,108920.0,108910.0,0.67427618]
[1752075629056,1.13978324,108920.0,108910.0,0.6742446]
[1752075629451,1.13978324,108920.0,108910.0,0.78426436]
[1752075630560,1.13978324,108920.0,108910.0,0.6742446]
[1752075632356,1.13978324,108920.0,108910.0,0.67424432]
[1752075632659,1.13978324,108920.0,108910.0,0.78426408]
[1752075633758,0.2295573,108900.0,108880.0,0.6917101]
[1752075633956,1.06449709,108900.0,108890.0,0.30938726]
[1752075634163,1.38348463,108900.0,108890.0,0.30938726]
[1752075634358,0.24697655,108900.0,108890.0,1.93038726]
[1752075634565,0.56596409,108900.0,108890.0,1.8846633]
[1752075634767,0.24797655,108900.0,108890.0,1.8846633]
[1752075634964,0.56696409,108900.0,108890.0,1.8866633]
[1752075635155,0.56796409,108900.0,108890.0,1.8866633]
[1752075635464,0.56696409,108900.0,108890.0,1.8866633]
[1752075635656,0.56696409,108900.0,108890.0,1.89564282]
[1752075636860,0.24797655,108900.0,108890.0,2.20565084]
[1752075637061,0.24797655,108900.0,108890.0,0.6264633]
[1752075637261,0.24797655,108900.0,108890.0,0.6107433]
[1752075637461,0.24797655,108900.0,108890.0,0.96819084]
[1752075638168,0.01841995,108900.0,108890.0,0.96819084]
[1752075638369,0.001,108900.0,108890.0,1.15185484]
[1752075638565,0.001,108900.0,108890.0,1.28891139]
[1752075638772,0.2994528,108910.0,108900.0,0.1836294]
[1752075639065,0.2754328,108910.0,108900.0,2.24983148]
[1752075639665,0.2754328,108910.0,108900.0,1.93084394]
[1752075639966,0.2754328,108910.0,108900.0,2.24983148]
[1752075640165,0.2784328,108910.0,108900.0,2.25083148]
[1752075640366,0.2947028,108910.0,108900.0,2.25083148]
[1752075640566,0.2784328,108910.0,108900.0,2.25083148]
[1752075640865,0.2325289,108910.0,108900.0,2.25083148]
[1752075641066,0.2345289,108910.0,108900.0,2.25183148]
[1752075643774,0.2345289,108910.0,108900.0,2.36189933]
[1752075644377,0.2507989,108910.0,108900.0,2.04291179]
[1752075644574,0.2507989,108910.0,108900.0,2.36189933]
[1752075645875,0.2507989,108910.0,108900.0,2.37625315]
[1752075651287,0.62413644,108910.0,108900.0,1.59214561]
[1752075651586,0.65583644,108910.0,108900.0,1.59214561]
[1752075652481,0.65583644,108910.0,108900.0,1.48207776]
[1752075652783,0.3368489,108910.0,108900.0,1.48207776]
[1752075652976,0.65583644,108910.0,108900.0,1.48207776]
[1752075655092,0.65583644,108910.0,108900.0,0.03572836]
[1752075655295,0.65583644,108910.0,108900.0,0.21935786]
[1752075655689,0.65583644,108910.0,108900.0,0.23580786]
[1752075655890,0.65583644,108910.0,108900.0,0.34587571]
[1752075656205,0.65583644,108910.0,108900.0,0.32942571]
[1752075656895,0.65583644,108910.0,108900.0,0.34587571]
[1752075657588,0.65583644,108910.0,108900.0,0.70667571]
[1752075657794,0.65583644,108910.0,108900.0,0.34587571]
[1752075657997,1.28643644,108910.0,108900.0,0.33152189]
[1752075658196,1.28643644,108910.0,108900.0,0.34587621]
[1752075658699,0.9674489,108910.0,108900.0,0.34587621]
[1752075658898,1.28643644,108910.0,108900.0,0.34587621]
[1752075659393,1.26328644,108910.0,108900.0,0.34587621]
[1752075659794,1.26328644,108910.0,108900.0,0.70667621]
[1752075660688,1.26328644,108910.0,108900.0,0.34587599]
[1752075661199,1.28643644,108910.0,108900.0,0.34587599]
[1752075662094,1.28643644,108910.0,108900.0,0.34587589]
[1752075663589,1.24701644,108910.0,108900.0,0.34587589]
[1752075664297,0.61641644,108910.0,108900.0,0.34587589]
[1752075664498,1.26332644,108910.0,108900.0,0.70657884]
[1752075664998,0.2974289,108910.0,108900.0,1.02556638]
[1752075665298,0.9131389,108910.0,108900.0,1.08836638]
[1752075665990,0.8968689,108910.0,108900.0,1.08836619]
[1752075666493,0.9131389,108910.0,108900.0,0.76937865]
[1752075666698,0.8968689,108910.0,108900.0,0.76937865]
[1752075666994,0.2824989,108910.0,108900.0,1.08836619]
[1752075667198,0.2345289,108910.0,108900.0,1.11303619]
[1752075667599,0.2507989,108910.0,108900.0,1.11303619]
[1752075668896,0.1886257,108910.0,108900.0,1.11303597]
[1752075669096,0.1886126,108910.0,108900.0,1.11303597]
[1752075669399,0.005,108910.0,108900.0,1.11303597]
[1752075670803,0.1886126,108910.0,108900.0,1.11303597]
[1752075671187,0.45669364,108920.0,108910.0,0.1836126]
[1752075671188,0.183597,108920.0,108910.0,0.1836126]
[1752075671387,0.3022131,108930.0,108920.0,0.1835957]
[1752075671594,0.38523229,108930.0,108920.0,0.95844752]
[1752075672095,0.03712309,108930.0,108920.0,0.95844752]
[1752075672300,0.1835789,108930.0,108920.0,0.95844752]
[1752075672700,0.1835789,108930.0,108920.0,0.96721955]
[1752075673100,0.1885789,108930.0,108920.0,0.96821955]
[1752075673402,0.005,108930.0,108920.0,1.07840832]
[1752075673599,0.005,108930.0,108920.0,0.96821955]
[1752075673803,0.005,108930.0,108920.0,1.1062761]
[1752075674109,0.009,108930.0,108920.0,1.1062761]
[1752075674605,0.01757042,108940.0,108930.0,0.1835789]
[1752075674906,0.2294483,108950.0,108940.0,0.183562]
[1752075675099,0.2454883,108950.0,108940.0,0.94010323]
[1752075675602,0.30172914,108950.0,108940.0,0.62111569]
[1752075675802,0.31776914,108950.0,108940.0,0.62111569]
[1752075676202,0.31776914,108950.0,108940.0,0.94010323]
[1752075676203,0.1995995,108950.0,108940.0,0.94010323]
[1752075676400,0.1995995,108950.0,108940.0,0.95641323]
[1752075676603,0.1995995,108950.0,108940.0,0.66213569]
[1752075676799,0.1995995,108950.0,108940.0,0.98112323]
[1752075677912,0.2005995,108950.0,108940.0,0.98212323]
[1752075678103,0.2035995,108950.0,108940.0,0.98212323]
[1752075678402,0.004,108950.0,108940.0,0.98212323]
[1752075678705,0.1875452,108950.0,108940.0,0.98212323]
[1752075679006,0.1845452,108950.0,108940.0,0.98312323]
[1752075681011,0.1845452,108950.0,108940.0,0.98310124]
[1752075685912,0.2005852,108950.0,108940.0,0.98310124]
[1752075686912,0.2005852,108950.0,108940.0,0.94439236]
[1752075687209,0.1845452,108950.0,108940.0,0.94439236]
[1752075691009,0.1845452,108950.0,108940.0,0.62540482]
[1752075691310,0.54310274,108950.0,108940.0,0.2162037]
[1752075691506,0.54310274,108950.0,108940.0,0.0163317]
[1752075691507,0.60350274,108950.0,108940.0,0.0163317]
[1752075692114,0.96430274,108950.0,108940.0,0.0163317]
[1752075700316,1.00121337,108950.0,108940.0,0.0163317]
[1752075701122,1.00121337,108950.0,108940.0,0.01634888]
[1752075706125,1.01875446,108950.0,108940.0,8e-08]
[1752075706428,1.337742,108950.0,108940.0,8e-08]
[1752075706625,1.687742,108950.0,108940.0,8e-08]
[1752075706926,0.1835789,108930.0,108920.0,0.01891059]
[1752075707123,1.85108398,108930.0,108920.0,0.01891059]
[1752075707325,1.91298398,108930.0,108920.0,0.01891059]
[1752075708430,1.91398398,108930.0,108920.0,0.02291059]
[1752075709123,1.59499644,108930.0,108920.0,0.02291059]
[1752075709627,1.60391011,108930.0,108920.0,0.02291059]
[1752075709831,1.58824011,108930.0,108920.0,0.02291059]
[1752075710026,1.90722765,108930.0,108920.0,0.02291059]
[1752075710330,1.58824011,108930.0,108920.0,0.02291059]
[1752075711025,1.58804011,108930.0,108920.0,0.02291059]
[1752075711625,1.58804011,108930.0,108920.0,0.02491059]
[1752075714033,1.58804011,108930.0,108920.0,0.03997059]
[1752075714334,1.6058116,108930.0,108920.0,0.03997059]
[1752075714722,1.6061316,108930.0,108920.0,0.03997059]
[1752075716134,0.9759716,108930.0,108920.0,0.03997059]
[1752075716334,1.6218816,108930.0,108920.0,0.03997059]
[1752075718138,1.6218816,108930.0,108920.0,0.05431521]
[1752075718335,1.6218016,108930.0,108920.0,0.05431521]
[1752075718535,0.9916416,108930.0,108920.0,0.05431521]
[1752075718726,1.6218016,108930.0,108920.0,0.05431521]
[1752075721432,1.6218016,108930.0,108920.0,0.03925521]
[1752075722141,1.94078914,108930.0,108920.0,0.03925521]
[1752075723440,1.6218016,108930.0,108920.0,0.03925521]
[1752075723635,1.6218016,108930.0,108920.0,0.03926341]
[1752075725137,1.6218016,108930.0,108920.0,0.05432341]
[1752075726235,1.6217616,108930.0,108920.0,0.05432341]
[1752075726633,1.6217616,108930.0,108920.0,0.05432324]
[1752075726840,1.6217616,108930.0,108920.0,0.03926324]
[1752075727140,1.94074914,108930.0,108920.0,0.03926324]
[1752075730137,1.97786817,108930.0,108920.0,0.03926324]
[1752075731344,1.94074914,108930.0,108920.0,0.03926324]
[1752075733345,1.97788361,108930.0,108920.0,0.03926324]
[1752075733754,1.9778861,108930.0,108920.0,0.03926324]
[1752075734752,1.9778861,108930.0,108920.0,0.02035265]
[1752075736147,0.66797856,108930.0,108920.0,0.56474835]
[1752075736344,0.20235039,108930.0,108920.0,1.03443597]
[1752075736544,0.05592193,108930.0,108920.0,0.98821589]
[1752075736749,0.01877149,108930.0,108920.0,1.46823597]
[1752075736951,0.01877149,108930.0,108920.0,1.65185197]
[1752075737960,0.01877149,108930.0,108920.0,1.28185197]
[1752075738472,0.01877149,108930.0,108920.0,1.17163952]
[1752075738658,0.01877149,108930.0,108920.0,1.30869607]
[1752075740362,0.01877149,108930.0,108920.0,1.93833607]
[1752075740757,0.01877149,108930.0,108920.0,1.75472007]
[1752075741354,0.01877149,108930.0,108920.0,1.75471589]
[1752075741962,0.20235039,108930.0,108920.0,1.75471589]
[1752075742650,0.20235039,108930.0,108920.0,2.11551589]
[1752075743555,0.20235039,108930.0,108920.0,1.39391589]
[1752075743760,0.20235039,108930.0,108920.0,2.11551589]
[1752075744059,0.01877149,108930.0,108920.0,2.11551589]
[1752075744962,0.20235049,108930.0,108920.0,2.11551589]
[1752075745176,0.01877149,108930.0,108920.0,1.97845934]
[1752075745350,0.01877149,108930.0,108920.0,2.0721448]
[1752075746964,0.01877149,108930.0,108920.0,2.0579887]
[1752075747455,0.20235049,108930.0,108920.0,2.0579887]
[1752075748762,0.20235049,108930.0,108920.0,2.0335887]
[1752075748962,0.20235049,108930.0,108920.0,2.0579887]
[1752075751761,0.21735049,108930.0,108920.0,2.0579887]
[1752075754864,0.21735049,108930.0,108920.0,1.4283487]
[1752075755059,0.21735049,108930.0,108920.0,2.0571087]
[1752075755255,0.21735049,108930.0,108920.0,1.10936116]
[1752075755457,0.87123557,108930.0,108920.0,0.47676546]
[1752075755657,0.87123557,108930.0,108920.0,0.11596546]
[1752075755658,1.94923557,108930.0,108920.0,0.11596546]
[1752075755858,1.94923557,108930.0,108920.0,0.13224546]
[1752075756161,1.26944803,108930.0,108920.0,0.11596546]
[1752075756367,1.26944803,108930.0,108920.0,0.02228]
[1752075759468,1.26944803,108930.0,108920.0,0.03638108]
[1752075761464,0.64068803,108930.0,108920.0,0.21997688]
[1752075761660,1.26948803,108930.0,108920.0,0.21997688]
[1752075763672,0.64068803,108930.0,108920.0,0.58077688]
[1752075763862,1.26948803,108930.0,108920.0,0.58077688]
[1752075764272,1.26948803,108930.0,108920.0,0.03638108]
[1752075764867,1.26948803,108930.0,108920.0,0.22007976]
[1752075770172,1.26948803,108930.0,108920.0,0.02020396]
[1752075770565,1.26948803,108930.0,108920.0,0.006]
[1752075770767,1.26948803,108930.0,108920.0,0.02022614]
[1752075772080,1.26948803,108930.0,108920.0,0.20382194]
[1752075774171,1.26948803,108930.0,108920.0,0.21917194]
[1752075775870,0.95050049,108930.0,108920.0,0.21917194]
[1752075776073,1.26948803,108930.0,108920.0,0.21917194]
[1752075776378,0.64068803,108930.0,108920.0,0.21917194]
[1752075776578,1.26948803,108930.0,108920.0,0.21917194]
[1752075776766,1.24584803,108930.0,108920.0,0.21917194]
[1752075777377,0.28215049,108930.0,108920.0,0.92315948]
[1752075777578,0.92647049,108930.0,108920.0,0.63427194]
[1752075777980,0.92647049,108930.0,108920.0,0.66497194]
[1752075778179,0.91095049,108930.0,108920.0,0.66497194]
[1752075778776,0.04929149,108930.0,108920.0,0.98395948]
[1752075779079,0.23287039,108930.0,108920.0,0.98395948]
[1752075779476,0.23287039,108930.0,108920.0,1.09392494]
[1752075780088,0.03152,108930.0,108920.0,1.09392494]
[1752075780276,0.2150989,108930.0,108920.0,1.09392494]
[1752075780982,0.2150989,108930.0,108920.0,1.72272494]
[1752075783686,0.016,108930.0,108920.0,1.72272494]
[1752075784388,0.016,108930.0,108920.0,1.72270092]
[1752075786482,0.199579,108930.0,108920.0,1.72270092]
[1752075786677,0.199579,108930.0,108920.0,0.54950512]
[1752075786887,0.53408654,108930.0,108920.0,1.40367338]
[1752075790480,0.215099,108930.0,108920.0,1.40367338]
[1752075791892,0.215099,108930.0,108920.0,1.37947338]
[1752075792098,0.279899,108930.0,108920.0,1.37947338]
[1752075792394,0.279899,108930.0,108920.0,1.40417338]
[1752075794802,0.59888654,108930.0,108920.0,0.74471338]
[1752075795004,0.62324654,108930.0,108920.0,1.31834338]
[1752075795296,0.62324654,108930.0,108920.0,1.30328338]
[1752075796599,0.304259,108930.0,108920.0,1.30328338]
[1752075796790,0.304259,108930.0,108920.0,1.33578338]
[1752075798501,0.264379,108930.0,108920.0,1.33578338]
[1752075798698,0.280059,108930.0,108920.0,1.36048338]
[1752075798886,0.59904654,108930.0,108920.0,1.36048338]
[1752075803892,0.59904654,108930.0,108920.0,1.33578338]
[1752075804096,0.62324654,108930.0,108920.0,1.30328338]
[1752075804297,0.62324654,108930.0,108920.0,0.67456338]
[1752075804497,0.62324654,108930.0,108920.0,0.68962338]
[1752075804905,0.62324654,108930.0,108920.0,0.67456338]
[1752075805107,0.62324654,108930.0,108920.0,0.68962338]
[1752075805296,0.62324654,108930.0,108920.0,0.56459792]
[1752075805495,0.62324654,108930.0,108920.0,0.57965792]
[1752075805796,0.62324654,108930.0,108920.0,0.56459792]
[1752075806205,0.62324654,108930.0,108920.0,0.67456338]
[1752075806502,0.62324654,108930.0,108920.0,0.68962338]
[1752075807103,1.25196654,108930.0,108920.0,0.68962338]
[1752075808001,1.25196654,108930.0,108920.0,0.71669492]
[1752075808400,1.25196654,108930.0,108920.0,0.57963837]
[1752075811809,1.25196654,108930.0,108920.0,0.5796499]
[1752075811996,1.25196654,108930.0,108920.0,0.50618668]
[1752075812500,1.25196654,108930.0,108920.0,0.68978248]
[1752075812907,1.25177298,108930.0,108920.0,0.50618668]
[1752075813107,1.25177298,108930.0,108920.0,0.68978248]
[1752075814612,1.25177298,108930.0,108920.0,0.50618668]
[1752075816915,1.25177298,108930.0,108920.0,0.50619682]
[1752075817615,1.25177298,108930.0,108920.0,0.50619669]
[1752075817811,1.25177298,108930.0,108920.0,0.39606411]
[1752075818819,1.25177298,108930.0,108920.0,0.57965991]
[1752075820913,1.25177298,108930.0,108920.0,0.68977138]
[1752075821119,1.25177298,108930.0,108920.0,0.68977088]
[1752075823420,1.25177298,108930.0,108920.0,0.68982726]
[1752075824215,1.25177298,108930.0,108920.0,0.39612049]
[1752075824409,1.25177298,108930.0,108920.0,0.53317704]
[1752075824608,1.25177298,108930.0,108920.0,0.64329117]
[1752075824813,1.25177298,108930.0,108920.0,0.50623462]
[1752075825623,1.25177298,108930.0,108920.0,0.14543462]
[1752075832828,1.25177298,108930.0,108920.0,0.32903042]
[1752075834025,0.62305298,108930.0,108920.0,0.32903042]
[1752075834229,1.25165298,108930.0,108920.0,0.32903042]
[1752075835132,1.25165298,108930.0,108920.0,0.68983042]
[1752075835331,1.25165298,108930.0,108920.0,0.61051629]
[1752075835629,1.25165298,108930.0,108920.0,0.64281629]
[1752075835936,1.25165298,108930.0,108920.0,0.41907284]
[1752075836129,1.25165298,108930.0,108920.0,0.77987284]
[1752075837231,1.25165298,108930.0,108920.0,0.23547704]
[1752075837434,1.25165298,108930.0,108920.0,0.20317704]
[1752075837730,1.25165298,108930.0,108920.0,0.74757284]
[1752075838528,1.25165298,108930.0,108920.0,0.72069255]
[1752075841929,1.25165298,108930.0,108920.0,0.75339255]
[1752075842634,1.25165298,108930.0,108920.0,0.75339399]
[1752075843521,1.25067298,108930.0,108920.0,0.75339399]
[1752075847437,1.56946696,108930.0,108920.0,0.50629819]
[1752075847631,1.56946696,108930.0,108920.0,0.53317848]
[1752075848128,1.56946696,108930.0,108920.0,0.17237848]
[1752075849326,1.56946696,108930.0,108920.0,0.21891773]
[1752075849527,1.56946696,108930.0,108920.0,0.70251235]
[1752075849932,1.56946696,108930.0,108920.0,0.5654558]
[1752075850334,1.25067298,108930.0,108920.0,0.5654558]
[1752075851039,1.22733298,108930.0,108920.0,0.5654558]
[1752075851240,1.22733298,108930.0,108920.0,0.6300558]
[1752075851435,1.25128298,108930.0,108920.0,0.6300558]
[1752075851836,1.22733298,108930.0,108920.0,0.6300558]
[1752075852137,1.22733298,108930.0,108920.0,0.74024613]
[1752075852336,1.25128298,108930.0,108920.0,0.6300558]
[1752075853237,1.25128298,108930.0,108920.0,0.2692558]
[1752075853438,1.25128298,108930.0,108920.0,0.16275003]
[1752075853636,1.25128298,108930.0,108920.0,0.5969558]
[1752075853844,1.57007696,108930.0,108920.0,0.5969558]
[1752075854343,1.57007696,108930.0,108920.0,0.13125159]
[1752075854739,1.57007696,108930.0,108920.0,0.02106]
[1752075854938,1.57007696,108930.0,108920.0,0.2046558]
[1752075855140,1.57007696,108930.0,108920.0,0.34171235]
[1752075855342,1.57007696,108930.0,108920.0,0.15811655]
[1752075855542,1.57007696,108930.0,108920.0,0.34171235]
[1752075857349,0.31879398,108940.0,108930.0,0.0458934]
[1752075857534,0.85761215,108940.0,108930.0,1.03227898]
[1752075857734,1.50264215,108940.0,108930.0,0.736595]
[1752075857937,1.48605215,108940.0,108930.0,0.6675916]
[1752075858235,0.183579,108930.0,108920.0,1.50044794]
[1752075858440,0.51896298,108930.0,108920.0,1.31589155]
[1752075858641,0.51896298,108930.0,108920.0,1.37429155]
[1752075858845,0.60781298,108930.0,108920.0,1.239235]
[1752075859140,0.60781298,108930.0,108920.0,1.37629155]
[1752075859731,0.60781298,108930.0,108920.0,1.37529155]
[1752075860843,0.60881298,108930.0,108920.0,1.38029155]
[1752075861036,0.60881298,108930.0,108920.0,0.71865155]
[1752075861236,0.60781298,108930.0,108920.0,1.35777155]
[1752075861437,0.60881298,108930.0,108920.0,1.223715]
[1752075861842,0.60881298,108930.0,108920.0,1.176795]
[1752075862039,0.60881298,108930.0,108920.0,0.548395]
[1752075862247,0.60881298,108930.0,108920.0,0.564115]
[1752075863144,0.60881298,108930.0,108920.0,1.192475]
[1752075865148,0.60881298,108930.0,108920.0,0.564115]
[1752075867145,0.60881298,108930.0,108920.0,0.88290898]
[1752075867146,0.58486298,108930.0,108920.0,0.88290898]
[1752075867334,0.31979398,108930.0,108920.0,0.96881898]